[Event "Titled Tuesday Blitz November 29 Late 2022"]
[White "Harish, Neeraj"]
[Black "Joubert, Dantelle"]
[WhiteFideId "30958130"]
[BlackFideId "14310813"]
[WhiteElo "1815"]
[BlackElo "1507"]
[Result "0-1"]
[Round "08"]
[TimeControl "180+1"]
[Date "2022.11.30"]
[WhiteClock "0:00:02"]
[BlackClock "0:00:13"]

1. e4 {[%clk 0:03:00]}  e5 {[%clk 0:02:58]} 2. Nf3 {[%clk 0:03:00]}  Nc6 {[%clk 0:02:57]} 3. Bc4 {[%clk 0:02:58]}  Bc5 {[%clk 0:02:56]} 4. O-O {[%clk 0:02:57]}  Nf6 {[%clk 0:02:56]} 5. d3 {[%clk 0:02:57]}  O-O {[%clk 0:02:54]} 6. h3 {[%clk 0:02:56]}  a6 {[%clk 0:02:51]} 7. a4 {[%clk 0:02:52]}  d5 {[%clk 0:02:50]} 8. exd5 {[%clk 0:02:46]}  Nxd5 {[%clk 0:02:50]} 9. Nbd2 {[%clk 0:02:44]}  Bf5 {[%clk 0:02:47]} 10. Re1 {[%clk 0:02:41]}  f6 {[%clk 0:02:39]} 11. Ne4 {[%clk 0:02:28]}  Ba7 {[%clk 0:02:22]} 12. Nc3 {[%clk 0:02:00]}  Ne7 {[%clk 0:02:19]} 13. Nxd5 {[%clk 0:01:52]}  Nxd5 {[%clk 0:02:19]} 14. d4 {[%clk 0:01:26]}  e4 {[%clk 0:02:14]} 15. Nd2 {[%clk 0:01:22]}  Re8 {[%clk 0:02:01]} 16. c3 {[%clk 0:01:19]}  Kh8 {[%clk 0:01:55]} 17. Qh5 {[%clk 0:01:10]}  g6 {[%clk 0:01:54]} 18. Qd1 {[%clk 0:01:05]}  e3 {[%clk 0:01:36]} 19. Bxd5 {[%clk 0:00:57]}  exf2+ {[%clk 0:01:12]} 20. Kxf2 {[%clk 0:00:53]}  Qxd5 {[%clk 0:01:11]} 21. Nf3 {[%clk 0:00:51]}  Be4 {[%clk 0:01:05]} 22. Bf4 {[%clk 0:00:47]}  c5 {[%clk 0:00:59]} 23. Be3 {[%clk 0:00:31]}  Rad8 {[%clk 0:00:33]} 24. dxc5 {[%clk 0:00:16]}  Qh5 {[%clk 0:00:32]} 25. Qe2 {[%clk 0:00:13]}  Bc6 {[%clk 0:00:24]} 26. Rad1 {[%clk 0:00:12]}  Rxd1 {[%clk 0:00:22]} 27. Qxd1 {[%clk 0:00:10]}  Bxc5 {[%clk 0:00:22]} 28. Bd4 {[%clk 0:00:02]}  Rxe1 {[%clk 0:00:17]} 29. Qxe1 {[%clk 0:00:02]}  Bxf3 {[%clk 0:00:13]} 0-1


[Site "https://www.chess.com"]

[Event "Titled Tuesday Blitz November 29 Late 2022"]
[White "Hoffmann, Asa"]
[Black "Salman, Pavel"]
[WhiteFideId "2001470"]
[BlackFideId "24153753"]
[WhiteElo "2117"]
[BlackElo "2187"]
[Result "0-1"]
[Round "08"]
[TimeControl "180+1"]
[Date "2022.11.30"]
[WhiteClock "0:01:35"]
[BlackClock "0:02:10"]

1. d4 {[%clk 0:03:00]}  Nf6 {[%clk 0:02:59]} 2. Bg5 {[%clk 0:02:54]}  d6 {[%clk 0:02:57]} 3. e3 {[%clk 0:02:53]}  Nbd7 {[%clk 0:02:56]} 4. Bd3 {[%clk 0:02:52]}  g6 {[%clk 0:02:57]} 5. f4 {[%clk 0:02:46]}  h6 {[%clk 0:02:54]} 6. Bh4 {[%clk 0:02:46]}  Bg7 {[%clk 0:02:55]} 7. Nf3 {[%clk 0:02:46]}  c5 {[%clk 0:02:52]} 8. c3 {[%clk 0:02:45]}  Qb6 {[%clk 0:02:51]} 9. Qb3 {[%clk 0:02:39]}  Qxb3 {[%clk 0:02:41]} 10. axb3 {[%clk 0:02:38]}  cxd4 {[%clk 0:02:42]} 11. exd4 {[%clk 0:02:38]}  Nd5 {[%clk 0:02:43]} 12. Bg3 {[%clk 0:02:34]}  N7f6 {[%clk 0:02:41]} 13. Bc4 {[%clk 0:02:28]}  Ne3 {[%clk 0:02:40]} 14. Kd2 {[%clk 0:02:11]}  Nxg2 {[%clk 0:02:34]} 15. Rg1 {[%clk 0:02:06]}  Bh3 {[%clk 0:02:33]} 16. Bb5+ {[%clk 0:01:52]}  Kf8 {[%clk 0:02:32]} 17. Bf1 {[%clk 0:01:51]}  Ne4+ {[%clk 0:02:27]} 18. Kc2 {[%clk 0:01:45]}  Ne3+ {[%clk 0:02:26]} 19. Kd3 {[%clk 0:01:41]}  Nxf1 {[%clk 0:02:11]} 20. Kxe4 {[%clk 0:01:35]}  Bf5+ {[%clk 0:02:11]} 21. Kd5 {[%clk 0:01:35]}  Ne3# {[%clk 0:02:10]} 0-1


[Site "https://www.chess.com"]

[Event "Titled Tuesday Blitz November 29 Late 2022"]
[White "Kalogeris, Ioannis"]
[Black "Kim, Sergey"]
[WhiteFideId "4239563"]
[BlackFideId "13700570"]
[WhiteElo "2312"]
[BlackElo "2613"]
[Result "1-0"]
[Round "08"]
[TimeControl "180+1"]
[Date "2022.11.30"]
[WhiteClock "0:01:10"]
[BlackClock "0:01:02"]

1. e4 {[%clk 0:02:58]}  e5 {[%clk 0:02:59]} 2. Nf3 {[%clk 0:02:58]}  Nc6 {[%clk 0:03:00]} 3. Bb5 {[%clk 0:02:57]}  a6 {[%clk 0:03:00]} 4. Ba4 {[%clk 0:02:58]}  Nf6 {[%clk 0:03:00]} 5. Bxc6 {[%clk 0:02:58]}  dxc6 {[%clk 0:02:59]} 6. d3 {[%clk 0:02:59]}  Nd7 {[%clk 0:02:58]} 7. Nbd2 {[%clk 0:02:59]}  g6 {[%clk 0:02:58]} 8. Nc4 {[%clk 0:02:59]}  Bg7 {[%clk 0:02:58]} 9. h4 {[%clk 0:02:54]}  h5 {[%clk 0:02:57]} 10. Bg5 {[%clk 0:02:54]}  f6 {[%clk 0:02:58]} 11. Be3 {[%clk 0:02:48]}  Qe7 {[%clk 0:02:56]} 12. O-O {[%clk 0:02:41]}  O-O {[%clk 0:02:51]} 13. d4 {[%clk 0:02:35]}  exd4 {[%clk 0:02:50]} 14. Qxd4 {[%clk 0:02:18]}  Ne5 {[%clk 0:02:46]} 15. Ncxe5 {[%clk 0:02:03]}  fxe5 {[%clk 0:02:46]} 16. Qc5 {[%clk 0:01:58]}  Qxc5 {[%clk 0:02:30]} 17. Bxc5 {[%clk 0:01:58]}  Re8 {[%clk 0:02:28]} 18. Rad1 {[%clk 0:01:53]}  Bg4 {[%clk 0:02:27]} 19. Rd3 {[%clk 0:01:53]}  b6 {[%clk 0:02:24]} 20. Bb4 {[%clk 0:01:51]}  c5 {[%clk 0:02:21]} 21. Bc3 {[%clk 0:01:50]}  Be6 {[%clk 0:02:08]} 22. b3 {[%clk 0:01:50]}  c4 {[%clk 0:02:04]} 23. Rd2 {[%clk 0:01:47]}  cxb3 {[%clk 0:02:03]} 24. cxb3 {[%clk 0:01:45]}  Bg4 {[%clk 0:02:02]} 25. Ng5 {[%clk 0:01:40]}  Rad8 {[%clk 0:02:01]} 26. f3 {[%clk 0:01:39]}  Rxd2 {[%clk 0:02:00]} 27. Bxd2 {[%clk 0:01:39]}  Bd7 {[%clk 0:01:46]} 28. Rc1 {[%clk 0:01:35]}  c5 {[%clk 0:01:45]} 29. Kf2 {[%clk 0:01:31]}  a5 {[%clk 0:01:41]} 30. Bc3 {[%clk 0:01:29]}  Bf8 {[%clk 0:01:25]} 31. Rd1 {[%clk 0:01:28]}  Bc6 {[%clk 0:01:25]} 32. Ke3 {[%clk 0:01:18]}  a4 {[%clk 0:01:21]} 33. g4 {[%clk 0:01:15]}  hxg4 {[%clk 0:01:17]} 34. fxg4 {[%clk 0:01:16]}  axb3 {[%clk 0:01:15]} 35. axb3 {[%clk 0:01:17]}  Be7 {[%clk 0:01:15]} 36. Nf3 {[%clk 0:01:11]}  Bf6 {[%clk 0:01:02]} 37. Rd6 {[%clk 0:01:10]} 1-0


[Site "https://www.chess.com"]

[Event "Titled Tuesday Blitz November 29 Late 2022"]
[White "Kamsky, Gata"]
[Black "Nasuta, Grzegorz"]
[WhiteFideId "2000024"]
[BlackFideId "1141686"]
[WhiteElo "2666"]
[BlackElo "2440"]
[Result "1-0"]
[Round "08"]
[TimeControl "180+1"]
[Date "2022.11.30"]
[WhiteClock "0:00:09"]
[BlackClock "0:00:11"]

1. d4 {[%clk 0:03:00]}  d5 {[%clk 0:02:59]} 2. Bf4 {[%clk 0:02:59]}  c5 {[%clk 0:02:59]} 3. e3 {[%clk 0:02:58]}  Nc6 {[%clk 0:02:59]} 4. c3 {[%clk 0:02:58]}  Bf5 {[%clk 0:02:51]} 5. Qb3 {[%clk 0:02:55]}  Qd7 {[%clk 0:02:48]} 6. dxc5 {[%clk 0:02:45]}  e5 {[%clk 0:02:46]} 7. Bg3 {[%clk 0:02:46]}  Bxc5 {[%clk 0:02:45]} 8. Nf3 {[%clk 0:02:45]}  f6 {[%clk 0:02:44]} 9. Nbd2 {[%clk 0:02:40]}  Nge7 {[%clk 0:02:42]} 10. Be2 {[%clk 0:02:36]}  Be6 {[%clk 0:02:40]} 11. O-O {[%clk 0:02:32]}  O-O {[%clk 0:02:36]} 12. Rfd1 {[%clk 0:02:28]}  Rfd8 {[%clk 0:02:29]} 13. e4 {[%clk 0:02:15]}  Kh8 {[%clk 0:02:09]} 14. exd5 {[%clk 0:02:14]}  Bxd5 {[%clk 0:02:08]} 15. Qb5 {[%clk 0:01:56]}  Bb6 {[%clk 0:01:22]} 16. Nc4 {[%clk 0:01:54]}  Bc7 {[%clk 0:01:22]} 17. Ne3 {[%clk 0:01:49]}  a6 {[%clk 0:01:22]} 18. Qa4 {[%clk 0:01:49]}  Nd4 {[%clk 0:01:22]} 19. Rxd4 {[%clk 0:00:58]}  exd4 {[%clk 0:01:19]} 20. Qxd7 {[%clk 0:00:57]}  Rxd7 {[%clk 0:01:19]} 21. Nxd4 {[%clk 0:00:57]}  Bxg3 {[%clk 0:01:18]} 22. hxg3 {[%clk 0:00:57]}  Re8 {[%clk 0:00:36]} 23. Nxd5 {[%clk 0:00:55]}  Nxd5 {[%clk 0:00:35]} 24. Bf3 {[%clk 0:00:55]}  Nb6 {[%clk 0:00:28]} 25. Bg4 {[%clk 0:00:30]}  Rde7 {[%clk 0:00:25]} 26. Nc2 {[%clk 0:00:26]}  g6 {[%clk 0:00:24]} 27. Rd1 {[%clk 0:00:21]}  Nc4 {[%clk 0:00:19]} 28. b3 {[%clk 0:00:20]}  Ne5 {[%clk 0:00:20]} 29. Be2 {[%clk 0:00:20]}  Rd7 {[%clk 0:00:20]} 30. Nd4 {[%clk 0:00:16]}  Nc6 {[%clk 0:00:20]} 31. Bf3 {[%clk 0:00:15]}  Red8 {[%clk 0:00:19]} 32. Re1 {[%clk 0:00:13]}  Nxd4 {[%clk 0:00:19]} 33. cxd4 {[%clk 0:00:13]}  Kg7 {[%clk 0:00:18]} 34. d5 {[%clk 0:00:12]}  Kf7 {[%clk 0:00:19]} 35. g4 {[%clk 0:00:12]}  Re8 {[%clk 0:00:18]} 36. Rc1 {[%clk 0:00:12]}  Ke7 {[%clk 0:00:19]} 37. a4 {[%clk 0:00:10]}  Kd6 {[%clk 0:00:18]} 38. Kh2 {[%clk 0:00:10]}  Rc7 {[%clk 0:00:19]} 39. Rb1 {[%clk 0:00:10]}  Rc2 {[%clk 0:00:17]} 40. Kg3 {[%clk 0:00:10]}  Rc3 {[%clk 0:00:18]} 41. b4 {[%clk 0:00:10]}  Re5 {[%clk 0:00:18]} 42. Kh2 {[%clk 0:00:09]}  Rc4 {[%clk 0:00:18]} 43. Kg3 {[%clk 0:00:09]}  Re7 {[%clk 0:00:17]} 44. a5 {[%clk 0:00:09]}  b5 {[%clk 0:00:14]} 45. axb6 {[%clk 0:00:09]}  Rb7 {[%clk 0:00:15]} 46. Re1 {[%clk 0:00:10]}  Rxb4 {[%clk 0:00:11]} 47. Re6+ {[%clk 0:00:09]}  Kc5 {[%clk 0:00:11]} 48. Rc6+ {[%clk 0:00:10]}  Kd4 {[%clk 0:00:11]} 49. d6 {[%clk 0:00:09]}  R4xb6 {[%clk 0:00:11]} 50. d7 {[%clk 0:00:09]} 1-0


[Site "https://www.chess.com"]

[Event "Titled Tuesday Blitz November 29 Late 2022"]
[White "Kollars, Dmitrij"]
[Black "Corrales Jimenez, Fidel"]
[WhiteFideId "12909572"]
[BlackFideId "3506690"]
[WhiteElo "2584"]
[BlackElo "2541"]
[Result "0-1"]
[Round "08"]
[TimeControl "180+1"]
[Date "2022.11.30"]
[WhiteClock "0:00:09"]
[BlackClock "0:00:32"]

1. d4 {[%clk 0:03:00]}  Nf6 {[%clk 0:02:59]} 2. Nf3 {[%clk 0:02:59]}  g6 {[%clk 0:03:00]} 3. Nbd2 {[%clk 0:03:00]}  d5 {[%clk 0:02:58]} 4. b3 {[%clk 0:02:59]}  Bg7 {[%clk 0:02:58]} 5. Bb2 {[%clk 0:02:59]}  O-O {[%clk 0:02:58]} 6. e3 {[%clk 0:03:00]}  b6 {[%clk 0:02:58]} 7. Be2 {[%clk 0:02:58]}  Bb7 {[%clk 0:02:58]} 8. O-O {[%clk 0:02:58]}  Nbd7 {[%clk 0:02:58]} 9. a4 {[%clk 0:02:59]}  a5 {[%clk 0:02:57]} 10. Rc1 {[%clk 0:02:55]}  c5 {[%clk 0:02:57]} 11. c4 {[%clk 0:02:51]}  e6 {[%clk 0:02:53]} 12. Qc2 {[%clk 0:02:44]}  Rc8 {[%clk 0:02:51]} 13. Qb1 {[%clk 0:02:45]}  Qe7 {[%clk 0:02:48]} 14. Qa1 {[%clk 0:02:41]}  Rfe8 {[%clk 0:02:42]} 15. Rfd1 {[%clk 0:02:27]}  cxd4 {[%clk 0:02:41]} 16. Nxd4 {[%clk 0:02:22]}  e5 {[%clk 0:02:38]} 17. Nb5 {[%clk 0:02:22]}  d4 {[%clk 0:02:39]} 18. exd4 {[%clk 0:02:20]}  exd4 {[%clk 0:02:39]} 19. Nxd4 {[%clk 0:02:20]}  Ne5 {[%clk 0:02:20]} 20. h3 {[%clk 0:02:09]}  Nh5 {[%clk 0:02:18]} 21. Bxh5 {[%clk 0:02:00]}  gxh5 {[%clk 0:02:18]} 22. Nf1 {[%clk 0:01:17]}  Qg5 {[%clk 0:02:09]} 23. Ne3 {[%clk 0:01:16]}  Ng6 {[%clk 0:01:54]} 24. Nd5 {[%clk 0:01:01]}  Bxd5 {[%clk 0:01:39]} 25. cxd5 {[%clk 0:00:53]}  Nf4 {[%clk 0:01:39]} 26. g3 {[%clk 0:00:53]}  Bxd4 {[%clk 0:01:34]} 27. Rxd4 {[%clk 0:00:27]}  Ne2+ {[%clk 0:01:25]} 28. Kh2 {[%clk 0:00:26]}  Nxd4 {[%clk 0:01:14]} 29. Rxc8 {[%clk 0:00:23]}  Nf3+ {[%clk 0:01:14]} 30. Kg2 {[%clk 0:00:21]}  Rxc8 {[%clk 0:01:15]} 31. Qd1 {[%clk 0:00:19]}  Nh4+ {[%clk 0:00:45]} 32. Kh2 {[%clk 0:00:13]}  Qf5 {[%clk 0:00:39]} 33. Kg1 {[%clk 0:00:10]}  Qf3 {[%clk 0:00:34]} 34. Qd2 {[%clk 0:00:09]}  Qg2# {[%clk 0:00:32]} 0-1


[Site "https://www.chess.com"]

[Event "Titled Tuesday Blitz November 29 Late 2022"]
[White "Kowalski, Igor"]
[Black "Annaberdiyev, Babageldi"]
[WhiteFideId "1172468"]
[BlackFideId "14000385"]
[WhiteElo "2317"]
[BlackElo "2332"]
[Result "1-0"]
[Round "08"]
[TimeControl "180+1"]
[Date "2022.11.30"]
[WhiteClock "0:00:24"]
[BlackClock "0:01:50"]

1. d4 {[%clk 0:03:00]}  Nf6 {[%clk 0:02:59]} 2. Nf3 {[%clk 0:03:01]}  g6 {[%clk 0:02:59]} 3. Nc3 {[%clk 0:03:02]}  d5 {[%clk 0:02:58]} 4. Bf4 {[%clk 0:03:02]}  a6 {[%clk 0:02:57]} 5. e3 {[%clk 0:03:01]}  Bg7 {[%clk 0:02:56]} 6. Be2 {[%clk 0:03:02]}  O-O {[%clk 0:02:56]} 7. Ne5 {[%clk 0:03:02]}  b5 {[%clk 0:02:54]} 8. h4 {[%clk 0:03:03]}  b4 {[%clk 0:02:54]} 9. Nb1 {[%clk 0:03:03]}  h6 {[%clk 0:02:52]} 10. g4 {[%clk 0:03:02]}  Nfd7 {[%clk 0:02:50]} 11. Nd3 {[%clk 0:02:56]}  a5 {[%clk 0:02:49]} 12. Nd2 {[%clk 0:02:47]}  Ba6 {[%clk 0:02:47]} 13. Nf3 {[%clk 0:02:33]}  Bxd3 {[%clk 0:02:45]} 14. Bxd3 {[%clk 0:02:32]}  c5 {[%clk 0:02:45]} 15. c3 {[%clk 0:02:32]}  c4 {[%clk 0:02:45]} 16. Bc2 {[%clk 0:02:32]}  Nc6 {[%clk 0:02:46]} 17. h5 {[%clk 0:02:15]}  g5 {[%clk 0:02:45]} 18. Nxg5 {[%clk 0:02:14]}  e5 {[%clk 0:02:42]} 19. dxe5 {[%clk 0:02:11]}  Ndxe5 {[%clk 0:02:43]} 20. Nh7 {[%clk 0:01:36]}  bxc3 {[%clk 0:02:41]} 21. bxc3 {[%clk 0:01:23]}  d4 {[%clk 0:02:19]} 22. cxd4 {[%clk 0:00:51]}  Nxd4 {[%clk 0:02:18]} 23. exd4 {[%clk 0:00:46]}  Nd3+ {[%clk 0:02:07]} 24. Bxd3 {[%clk 0:00:43]}  cxd3 {[%clk 0:02:07]} 25. Nxf8 {[%clk 0:00:42]}  Qxd4 {[%clk 0:02:07]} 26. Be3 {[%clk 0:00:27]}  Qxa1 {[%clk 0:02:05]} 27. Qxa1 {[%clk 0:00:25]}  Bxa1 {[%clk 0:02:06]} 28. Kd2 {[%clk 0:00:23]}  Bg7 {[%clk 0:01:54]} 29. Nd7 {[%clk 0:00:23]}  Rd8 {[%clk 0:01:54]} 30. Nc5 {[%clk 0:00:23]}  Bf8 {[%clk 0:01:50]} 31. Nxd3 {[%clk 0:00:24]}  Bb4+ {[%clk 0:01:50]} 32. Ke2 {[%clk 0:00:24]} 1-0


[Site "https://www.chess.com"]

[Event "Titled Tuesday Blitz November 29 Late 2022"]
[White "Leebit02"]
[Black "Khandelwal, Ankush"]
[BlackFideId "413470"]
[WhiteElo "2310"]
[BlackElo "2271"]
[Result "0-1"]
[Round "08"]
[TimeControl "180+1"]
[Date "2022.11.30"]
[WhiteClock "0:00:18"]
[BlackClock "0:00:22"]

1. e4 {[%clk 0:03:00]}  c5 {[%clk 0:02:59]} 2. Nf3 {[%clk 0:03:00]}  d6 {[%clk 0:03:00]} 3. d4 {[%clk 0:03:01]}  cxd4 {[%clk 0:03:00]} 4. Nxd4 {[%clk 0:03:01]}  Nf6 {[%clk 0:03:01]} 5. Nc3 {[%clk 0:03:01]}  a6 {[%clk 0:03:02]} 6. f3 {[%clk 0:03:01]}  e5 {[%clk 0:03:02]} 7. Nb3 {[%clk 0:03:01]}  Be7 {[%clk 0:03:00]} 8. Be3 {[%clk 0:03:01]}  Be6 {[%clk 0:03:00]} 9. g4 {[%clk 0:02:59]}  d5 {[%clk 0:02:59]} 10. exd5 {[%clk 0:02:52]}  Nxd5 {[%clk 0:03:00]} 11. Nxd5 {[%clk 0:02:52]}  Bh4+ {[%clk 0:02:49]} 12. Bf2 {[%clk 0:02:47]}  Bxf2+ {[%clk 0:02:49]} 13. Kxf2 {[%clk 0:02:47]}  Bxd5 {[%clk 0:02:49]} 14. c4 {[%clk 0:02:09]}  Qh4+ {[%clk 0:02:49]} 15. Kg1 {[%clk 0:02:09]}  Bc6 {[%clk 0:02:43]} 16. Qe1 {[%clk 0:02:01]}  Qf6 {[%clk 0:02:34]} 17. Bg2 {[%clk 0:01:58]}  Nd7 {[%clk 0:02:34]} 18. Qe3 {[%clk 0:01:50]}  O-O {[%clk 0:02:32]} 19. h4 {[%clk 0:01:36]}  Qe6 {[%clk 0:02:30]} 20. Rc1 {[%clk 0:01:14]}  f5 {[%clk 0:02:28]} 21. g5 {[%clk 0:01:15]}  f4 {[%clk 0:02:25]} 22. Qe2 {[%clk 0:01:12]}  Rae8 {[%clk 0:02:08]} 23. Kh2 {[%clk 0:01:05]}  Qg6 {[%clk 0:01:59]} 24. Nd2 {[%clk 0:01:05]}  Qh5 {[%clk 0:01:54]} 25. Kg1 {[%clk 0:01:02]}  e4 {[%clk 0:01:55]} 26. Qd1 {[%clk 0:00:48]}  e3 {[%clk 0:01:40]} 27. Nb3 {[%clk 0:00:47]}  Ne5 {[%clk 0:01:40]} 28. Rh3 {[%clk 0:00:42]}  e2 {[%clk 0:01:37]} 29. Qxe2 {[%clk 0:00:38]}  Nxf3+ {[%clk 0:01:37]} 30. Bxf3 {[%clk 0:00:38]}  Rxe2 {[%clk 0:00:58]} 31. Bxh5 {[%clk 0:00:38]}  Rg2+ {[%clk 0:00:51]} 32. Kf1 {[%clk 0:00:37]}  f3 {[%clk 0:00:50]} 33. Nd4 {[%clk 0:00:30]}  f2 {[%clk 0:00:47]} 34. Bf3 {[%clk 0:00:18]}  Rg1+ {[%clk 0:00:37]} 35. Kxf2 {[%clk 0:00:19]}  Rxc1 {[%clk 0:00:37]} 36. Nxc6 {[%clk 0:00:19]}  bxc6 {[%clk 0:00:38]} 37. b3 {[%clk 0:00:17]}  Rc2+ {[%clk 0:00:36]} 38. Ke3 {[%clk 0:00:18]}  c5 {[%clk 0:00:21]} 39. Bd5+ {[%clk 0:00:18]}  Kh8 {[%clk 0:00:22]} 40. a4 {[%clk 0:00:18]}  Rc3+ {[%clk 0:00:22]} 0-1


[Site "https://www.chess.com"]

[Event "Titled Tuesday Blitz November 29 Late 2022"]
[White "Liu, Kelsey"]
[Black "Buchenau, Frank"]
[WhiteFideId "30944481"]
[BlackFideId "4604350"]
[WhiteElo "2280"]
[BlackElo "2157"]
[Result "0-1"]
[Round "08"]
[TimeControl "180+1"]
[Date "2022.11.30"]
[WhiteClock "0:00:23"]
[BlackClock "0:00:20"]

1. e4 {[%clk 0:02:59]}  e6 {[%clk 0:02:59]} 2. d4 {[%clk 0:02:58]}  d5 {[%clk 0:03:00]} 3. Nc3 {[%clk 0:02:58]}  Nf6 {[%clk 0:03:00]} 4. Bg5 {[%clk 0:02:58]}  dxe4 {[%clk 0:03:00]} 5. Nxe4 {[%clk 0:02:57]}  Be7 {[%clk 0:03:00]} 6. Bxf6 {[%clk 0:02:58]}  gxf6 {[%clk 0:03:00]} 7. Nf3 {[%clk 0:02:58]}  f5 {[%clk 0:03:00]} 8. Nc5 {[%clk 0:02:56]}  Nd7 {[%clk 0:02:39]} 9. Nxd7 {[%clk 0:02:52]}  Bxd7 {[%clk 0:02:38]} 10. Ne5 {[%clk 0:02:52]}  Bf6 {[%clk 0:02:34]} 11. Qh5 {[%clk 0:02:40]}  Bxe5 {[%clk 0:02:28]} 12. dxe5 {[%clk 0:02:41]}  Bc6 {[%clk 0:02:26]} 13. Bd3 {[%clk 0:02:07]}  Qe7 {[%clk 0:02:17]} 14. O-O-O {[%clk 0:02:03]}  O-O-O {[%clk 0:02:14]} 15. f3 {[%clk 0:02:01]}  Rdg8 {[%clk 0:02:05]} 16. Rhg1 {[%clk 0:01:58]}  Qg5+ {[%clk 0:02:01]} 17. Qxg5 {[%clk 0:01:58]}  Rxg5 {[%clk 0:02:02]} 18. Be2 {[%clk 0:01:51]}  Rhg8 {[%clk 0:01:59]} 19. g3 {[%clk 0:01:51]}  f4 {[%clk 0:01:55]} 20. Rd4 {[%clk 0:01:20]}  Rxe5 {[%clk 0:01:47]} 21. Bd1 {[%clk 0:01:09]}  fxg3 {[%clk 0:01:39]} 22. hxg3 {[%clk 0:01:10]}  Reg5 {[%clk 0:01:33]} 23. g4 {[%clk 0:01:07]}  e5 {[%clk 0:01:23]} 24. Rd3 {[%clk 0:01:03]}  f5 {[%clk 0:01:21]} 25. Rh1 {[%clk 0:01:02]}  fxg4 {[%clk 0:01:20]} 26. Rxh7 {[%clk 0:01:01]}  g3 {[%clk 0:01:18]} 27. Rh1 {[%clk 0:00:51]}  g2 {[%clk 0:01:18]} 28. Rg1 {[%clk 0:00:52]}  Rh8 {[%clk 0:01:13]} 29. Rd2 {[%clk 0:00:51]}  Rh1 {[%clk 0:01:05]} 30. Rgxg2 {[%clk 0:00:51]}  Rxg2 {[%clk 0:01:05]} 31. Rxg2 {[%clk 0:00:50]}  Bxf3 {[%clk 0:00:58]} 32. Rd2 {[%clk 0:00:51]}  e4 {[%clk 0:00:55]} 33. c3 {[%clk 0:00:46]}  Bxd1 {[%clk 0:00:38]} 34. Rxd1 {[%clk 0:00:46]}  Rxd1+ {[%clk 0:00:38]} 35. Kxd1 {[%clk 0:00:47]}  Kd7 {[%clk 0:00:38]} 36. Ke2 {[%clk 0:00:47]}  Ke6 {[%clk 0:00:38]} 37. Ke3 {[%clk 0:00:46]}  Kd5 {[%clk 0:00:36]} 38. c4+ {[%clk 0:00:44]}  Kxc4 {[%clk 0:00:35]} 39. Kxe4 {[%clk 0:00:44]}  a5 {[%clk 0:00:32]} 40. Ke5 {[%clk 0:00:34]}  Kd3 {[%clk 0:00:29]} 41. a3 {[%clk 0:00:24]}  Kc2 {[%clk 0:00:28]} 42. b4 {[%clk 0:00:24]}  axb4 {[%clk 0:00:22]} 43. axb4 {[%clk 0:00:24]}  Kc3 {[%clk 0:00:20]} 44. b5 {[%clk 0:00:23]}  Kc4 {[%clk 0:00:20]} 0-1


[Site "https://www.chess.com"]

[Event "Titled Tuesday Blitz November 29 Late 2022"]
[White "Mickiewicz, Piotr"]
[Black "Cappelletto, Joshuaede"]
[WhiteFideId "1114891"]
[BlackFideId "2824383"]
[WhiteElo "2246"]
[BlackElo "2237"]
[Result "0-1"]
[Round "08"]
[TimeControl "180+1"]
[Date "2022.11.30"]
[WhiteClock "0:00:04"]
[BlackClock "0:00:41"]

1. Nf3 {[%clk 0:03:00]}  Nf6 {[%clk 0:02:55]} 2. c4 {[%clk 0:03:00]}  e6 {[%clk 0:02:50]} 3. g3 {[%clk 0:03:01]}  d5 {[%clk 0:02:50]} 4. Bg2 {[%clk 0:03:01]}  dxc4 {[%clk 0:02:50]} 5. Qa4+ {[%clk 0:03:00]}  Nbd7 {[%clk 0:02:46]} 6. O-O {[%clk 0:02:56]}  a6 {[%clk 0:02:44]} 7. Qxc4 {[%clk 0:02:55]}  b5 {[%clk 0:02:45]} 8. Qc2 {[%clk 0:02:54]}  Bb7 {[%clk 0:02:45]} 9. d3 {[%clk 0:02:49]}  c5 {[%clk 0:02:43]} 10. a4 {[%clk 0:02:48]}  Be7 {[%clk 0:02:35]} 11. Nc3 {[%clk 0:02:44]}  b4 {[%clk 0:02:31]} 12. Ne4 {[%clk 0:02:44]}  O-O {[%clk 0:02:29]} 13. Rd1 {[%clk 0:02:37]}  Nxe4 {[%clk 0:02:18]} 14. dxe4 {[%clk 0:02:36]}  Qc8 {[%clk 0:02:18]} 15. Nd2 {[%clk 0:02:27]}  Qc7 {[%clk 0:02:04]} 16. b3 {[%clk 0:02:23]}  a5 {[%clk 0:02:00]} 17. Bb2 {[%clk 0:02:22]}  Nb6 {[%clk 0:01:59]} 18. e5 {[%clk 0:02:12]}  Bxg2 {[%clk 0:01:58]} 19. Kxg2 {[%clk 0:02:12]}  Rac8 {[%clk 0:01:58]} 20. Nc4 {[%clk 0:02:08]}  Nxc4 {[%clk 0:01:58]} 21. Qxc4 {[%clk 0:02:07]}  h6 {[%clk 0:01:55]} 22. h4 {[%clk 0:02:05]}  Rfd8 {[%clk 0:01:55]} 23. f3 {[%clk 0:01:50]}  Qc6 {[%clk 0:01:49]} 24. e4 {[%clk 0:01:44]}  Rc7 {[%clk 0:01:40]} 25. Rxd8+ {[%clk 0:01:42]}  Bxd8 {[%clk 0:01:41]} 26. Rd1 {[%clk 0:01:41]}  Be7 {[%clk 0:01:41]} 27. Kf2 {[%clk 0:01:40]}  Rd7 {[%clk 0:01:41]} 28. Rxd7 {[%clk 0:01:39]}  Qxd7 {[%clk 0:01:41]} 29. Ke2 {[%clk 0:01:38]}  Kh7 {[%clk 0:01:32]} 30. Bc1 {[%clk 0:01:36]}  Qd8 {[%clk 0:01:24]} 31. Be3 {[%clk 0:01:33]}  Qc7 {[%clk 0:01:24]} 32. f4 {[%clk 0:01:28]}  Qc6 {[%clk 0:01:24]} 33. h5 {[%clk 0:01:27]}  Qc7 {[%clk 0:01:22]} 34. Kd2 {[%clk 0:01:25]}  Qc6 {[%clk 0:01:15]} 35. Kc2 {[%clk 0:01:24]}  Qc7 {[%clk 0:01:15]} 36. Qb5 {[%clk 0:01:22]}  Bf8 {[%clk 0:01:09]} 37. Kd3 {[%clk 0:01:13]}  Qd8+ {[%clk 0:01:03]} 38. Ke2 {[%clk 0:01:13]}  Qc7 {[%clk 0:01:00]} 39. Qe8 {[%clk 0:01:02]}  Kg8 {[%clk 0:00:59]} 40. Qb5 {[%clk 0:00:58]}  Kh7 {[%clk 0:00:58]} 41. Qd3 {[%clk 0:00:50]}  Qc6 {[%clk 0:00:54]} 42. Kf3 {[%clk 0:00:50]}  Kg8 {[%clk 0:00:50]} 43. Bf2 {[%clk 0:00:49]}  c4 {[%clk 0:00:42]} 44. Qxc4 {[%clk 0:00:37]}  Qxc4 {[%clk 0:00:42]} 45. bxc4 {[%clk 0:00:38]}  b3 {[%clk 0:00:43]} 46. Bd4 {[%clk 0:00:38]}  Ba3 {[%clk 0:00:43]} 47. c5 {[%clk 0:00:38]}  Kf8 {[%clk 0:00:43]} 48. c6 {[%clk 0:00:37]}  Ke8 {[%clk 0:00:43]} 49. g4 {[%clk 0:00:21]}  b2 {[%clk 0:00:41]} 50. Bxb2 {[%clk 0:00:21]}  Bxb2 {[%clk 0:00:42]} 51. Ke2 {[%clk 0:00:16]}  Kd8 {[%clk 0:00:42]} 52. Kd3 {[%clk 0:00:17]}  Kc7 {[%clk 0:00:42]} 53. Kc2 {[%clk 0:00:16]}  Bd4 {[%clk 0:00:42]} 54. Kd3 {[%clk 0:00:16]}  Ba1 {[%clk 0:00:42]} 55. Kc4 {[%clk 0:00:05]}  Kxc6 {[%clk 0:00:42]} 56. g5 {[%clk 0:00:06]}  hxg5 {[%clk 0:00:42]} 57. fxg5 {[%clk 0:00:07]}  Bxe5 {[%clk 0:00:42]} 58. h6 {[%clk 0:00:05]}  gxh6 {[%clk 0:00:42]} 59. gxh6 {[%clk 0:00:06]}  f5 {[%clk 0:00:40]} 60. exf5 {[%clk 0:00:04]}  exf5 {[%clk 0:00:41]} 61. h7 {[%clk 0:00:04]}  Bh8 {[%clk 0:00:41]} 62. Kd3 {[%clk 0:00:03]}  Kc5 {[%clk 0:00:41]} 63. Ke3 {[%clk 0:00:04]}  Be5 {[%clk 0:00:41]} 0-1


[Site "https://www.chess.com"]